bitfinex/quotes_ETHUSD_20220119
["timestamp","ask_amount","ask_price","bid_price","bid_amount"]
[1642555621648,0.3,3166.5,3166.3,0.00397896]
[1642555621849,0.3,3166.5,3166.4,2.68260999]
[1642555622248,0.3,3166.5,3166.4,2.68602053]
[1642555622492,0.3,3166.5,3166.4,0.00341054]
[1642555622890,0.3,3166.5,3166.3,0.00397896]
[1642555623091,0.78985,3166.4,3166.3,0.00397896]
[1642555623495,0.78985,3166.4,3166.2,0.00454738]
[1642555623694,0.3,3166.5,3166.2,0.00454738]
[1642555624095,1.0,3166.9,3166.2,0.00454738]
[1642555624596,1.57967,3166.8,3166.2,0.00454738]
[1642555624795,1.57968,3166.4,3166.2,0.00454738]
[1642555625896,3.15953,3166.4,3166.2,0.00454738]
[1642555626149,1.57968,3166.4,3166.2,0.00454738]
[1642555627548,1.86393396,3166.4,3166.2,0.00454738]
[1642555628750,3.44375396,3166.4,3166.2,0.00454738]
[1642555628950,3.74375396,3166.4,3166.2,0.00454738]
[1642555630595,5.175156,3166.4,3166.2,0.00454738]
[1642555630895,1.0,3166.3,3166.2,0.00454738]
[1642555631095,0.79006,3166.2,3165.8,0.00682108]
[1642555631297,0.79006,3166.1,3165.7,0.0073895]
[1642555631496,1.09006,3166.1,3165.7,0.0073895]
[1642555632096,2.09006,3166.1,3165.7,0.0073895]
[1642555632496,0.3,3165.9,3165.7,0.0073895]
[1642555632899,1.08996,3165.9,3165.7,0.0073895]
[1642555633098,0.78996,3165.9,3165.7,0.0073895]
[1642555633296,0.78996,3165.9,3165.3,9.1107452]
[1642555633297,0.78996,3165.9,3165.6,1.60860488]
[1642555633671,0.78996,3165.9,3165.7,0.0073895]
[1642555634263,0.78996,3165.9,3165.7,1.60803646]
[1642555634660,0.78996,3165.9,3165.8,0.00682108]
[1642555635462,0.78996,3165.9,3165.7,1.60803646]
[1642555635861,1.57993,3165.9,3165.8,0.00682108]
[1642555636865,1.57993,3165.9,3165.8,3.25682108]
[1642555637690,1.57993,3165.9,3165.8,0.00682108]
[1642555638092,1.87993,3165.9,3165.8,0.00682108]
[1642555638294,1.87993,3165.9,3165.8,1.60746804]
[1642555638699,1.57993,3165.9,3165.8,3.40682108]
[1642555638899,1.57993,3165.9,3165.8,7.69436063]
[1642555639299,1.57993,3165.9,3165.8,8.49062912]
[1642555639898,1.87993,3165.9,3165.8,8.49062912]
[1642555640099,1.87993,3165.9,3165.8,6.08965868]
[1642555640302,1.87993,3165.9,3165.8,8.49062912]
[1642555640501,1.87993,3165.9,3165.8,6.08965868]
[1642555641450,1.87993,3165.9,3165.8,8.49062912]
[1642555642650,1.87993,3165.9,3165.8,4.29586199]
[1642555642851,1.87993,3165.9,3165.8,2.68965868]
[1642555645091,3.44387396,3166.4,3165.8,7.81981733]
[1642555645290,8.28431529,3167.1,3165.8,7.81981733]
[1642555645291,4.33484619,3167.1,3166.2,1.60602764]
[1642555645494,0.27808307,3167.1,3166.3,2.89470729]
[1642555645694,0.27808307,3167.1,3166.4,2.6828376]
[1642555645893,0.27808307,3167.1,3166.4,2.68624814]
[1642555646095,2.36917,3167.0,3166.5,2.6828376]
[1642555646493,0.3,3166.9,3166.6,0.00227369]
[1642555647094,0.3,3166.9,3166.4,0.00341054]
[1642555647495,1.08972,3166.9,3166.4,2.68624814]
[1642555647695,1.57948,3166.8,3166.5,2.6828376]
[1642555647996,1.57948,3166.8,3166.6,0.00227369]
[1642555648197,2.57948,3166.8,3166.6,0.00227369]
[1642555648642,3.36927,3166.8,3166.4,2.68624814]
[1642555648846,3.36927,3166.8,3166.5,2.6828376]
[1642555649048,2.36927,3166.8,3166.5,2.6828376]
[1642555649249,2.36927,3166.8,3166.6,0.00227369]
[1642555649449,3.36927,3166.8,3166.6,0.00227369]
[1642555649854,3.36927,3166.8,3166.6,2.68511129]
[1642555650049,3.36927,3166.8,3166.7,2.6828376]
[1642555650248,3.36927,3166.8,3166.7,2.68454287]
[1642555650449,3.36927,3166.8,3166.7,0.00170527]
[1642555650849,1.57969,3166.7,3166.4,0.00341054]
[1642555651051,1.57969,3166.7,3166.4,2.68624814]
[1642555651052,0.78983,3166.5,3166.4,2.68624814]
[1642555654907,0.78983,3166.5,3166.4,5.5442716]
[1642555655107,1.57936,3166.8,3166.4,5.5442716]
[1642555655304,1.57936,3166.8,3166.5,2.6828376]
[1642555655504,0.27808307,3167.1,3166.6,3.08709531]
[1642555655704,0.27808307,3167.1,3166.7,2.6828376]
[1642555655905,0.27808307,3167.1,3166.7,2.68454287]
[1642555656140,0.27808307,3167.1,3166.8,0.00113684]
[1642555656941,0.27808307,3167.1,3166.8,2.7283692]
[1642555657145,0.27808307,3167.1,3167.0,4.74059759]
[1642555657343,0.27808307,3167.1,3167.0,10.2511722]
[1642555657550,0.78953,3167.4,3167.0,10.2511722]
[1642555657745,9.02901,3167.8,3167.0,10.2511722]
[1642555657746,7.45,3167.8,3167.1,2.6828376]
[1642555657945,0.0022737,3167.4,3167.2,3.10253074]
[1642555658144,0.0022737,3167.4,3167.3,7.0828376]
[1642555658344,7.45,3167.8,3167.3,7.0828376]
[1642555658544,0.78949,3167.7,3167.4,2.6828376]
[1642555658745,0.79346897,3167.7,3167.4,5.42607694]
[1642555658945,1.58299897,3167.7,3167.5,2.6828376]
[1642555659144,1.58299897,3167.7,3167.6,2.6828376]
[1642555659446,1.58298897,3167.7,3167.3,2.6828376]
[1642555659900,0.79291055,3167.6,3167.3,2.6828376]
[1642555660294,0.00284212,3167.5,3167.3,2.6828376]
[1642555660493,0.78953,3167.4,3167.3,2.6828376]
[1642555660694,0.7918037,3167.4,3167.3,2.6828376]
[1642555661295,0.7918037,3167.4,3167.1,2.6828376]
[1642555661494,0.0022737,3167.4,3167.1,2.6828376]
[1642555661695,0.00170528,3167.3,3167.1,2.6828376]
[1642555662095,0.7895,3167.6,3167.2,5.76253742]
[1642555662295,0.7895,3167.6,3167.3,2.6828376]
[1642555662496,0.00284212,3167.5,3167.3,2.6828376]
[1642555662700,0.00284212,3167.5,3167.4,2.6828376]
[1642555662896,1.579,3167.6,3167.1,2.6828376]
[1642555663297,0.0022737,3167.4,3167.1,2.6828376]
[1642555663757,0.00170528,3167.3,3167.1,2.6828376]
[1642555664157,0.78953,3167.5,3167.1,2.6828376]
[1642555664158,0.00113685,3167.2,3167.1,2.6828376]
[1642555664458,0.00113685,3167.2,3167.1,5.9878376]
[1642555666460,0.00113685,3167.2,3167.1,3.1378376]
[1642555667400,0.00113685,3167.2,3167.1,5.9378376]
[1642555668498,0.79072685,3167.2,3167.1,5.2878376]
[1642555672863,0.79072685,3167.2,3167.1,3.1378376]
[1642555673863,0.79072685,3167.2,3167.1,2.6828376]
[1642555674263,1.58036685,3167.2,3167.1,2.6828376]
[1642555674464,1.58036685,3167.2,3167.0,2.6828376]
[1642555674663,1.58036685,3167.2,3167.1,2.6828376]
[1642555674905,1.88036685,3167.2,3167.0,2.6828376]
[1642555675098,1.09072685,3167.2,3167.0,2.6828376]
[1642555675898,0.79072685,3167.2,3167.0,2.6828376]
[1642555676499,0.00113685,3167.2,3167.0,5.46803335]
[1642555676700,0.00113685,3167.2,3167.1,5.8828376]
[1642555677804,0.00113685,3167.2,3167.1,2.6828376]
[1642555678204,0.00113685,3167.2,3167.0,2.6828376]
[1642555679246,0.00113685,3167.2,3167.0,5.43758069]
[1642555679447,0.00113685,3167.2,3167.1,6.0828376]
[1642555686006,0.00113685,3167.2,3167.1,2.6828376]
[1642555686248,0.00113685,3167.2,3167.1,2.45]
[1642555686447,0.00113685,3167.2,3167.1,5.1328376]
[1642555693753,0.00113685,3167.2,3167.1,8.03241778]
[1642555694151,0.00113685,3167.2,3167.1,5.1328376]
[1642555694551,0.78957,3167.3,3167.1,7.99691228]
[1642555694751,0.78957,3167.3,3167.2,4.9828376]
[1642555695151,0.79127528,3167.3,3167.2,4.9828376]
[1642555695351,0.00170528,3167.3,3167.2,4.9828376]
[1642555695955,0.00170528,3167.3,3167.2,7.74290595]
[1642555696156,0.00170528,3167.3,3167.2,4.9828376]
[1642555698005,0.00170528,3167.3,3167.2,7.78482924]
[1642555698206,0.00170528,3167.3,3167.2,9.39085688]
[1642555698607,0.00170528,3167.3,3167.2,7.78482924]
[1642555698806,0.00170528,3167.3,3167.2,8.08482924]
[1642555699810,0.00170528,3167.3,3167.2,10.4938707]
[1642555700810,0.00170528,3167.3,3167.2,10.1938707]
[1642555701746,0.00170528,3167.3,3167.2,4.9828376]
[1642555701947,0.00170528,3167.3,3167.2,2.3]
[1642555702246,0.00170528,3167.3,3167.2,5.3]
[1642555702446,0.00170528,3167.3,3167.2,10.71652783]
[1642555702646,0.00170528,3167.3,3167.2,10.72033479]
[1642555702846,0.00170528,3167.3,3167.2,11.02033479]
[1642555703849,0.00170528,3167.3,3167.2,11.05061996]
[1642555705597,0.00170528,3167.3,3167.2,12.65687338]
[1642555705895,0.00170528,3167.3,3167.2,9.88792954]
[1642555706098,0.00170528,3167.3,3167.2,8.28167612]
[1642555706295,0.00170528,3167.3,3167.2,11.12409071]
[1642555706702,0.00170528,3167.3,3167.2,9.88788538]
[1642555706896,0.00170528,3167.3,3167.2,9.58788538]
[1642555708852,0.00170528,3167.3,3167.2,6.58788538]
[1642555709053,0.00170528,3167.3,3167.2,4.98167612]
[1642555711654,0.00170528,3167.3,3167.2,6.58788538]
[1642555711858,0.00170528,3167.3,3167.2,4.98167612]
[1642555712056,0.00170528,3167.3,3167.2,6.58776731]
[1642555713001,0.00170528,3167.3,3167.2,6.58776483]
[1642555713801,0.00170528,3167.3,3167.2,4.98167612]
[1642555715905,0.00170528,3167.3,3167.2,2.3]
[1642555716147,0.00170528,3167.3,3167.2,4.98162477]
[1642555717551,0.00170528,3167.3,3167.2,6.58779004]
[1642555717752,0.00170528,3167.3,3167.2,4.98162477]
[1642555719756,0.00170528,3167.3,3167.2,6.58779004]
[1642555720800,0.00170528,3167.3,3167.2,4.98162477]
[1642555721802,0.00170528,3167.3,3167.2,2.68162477]
[1642555721803,1.58100528,3167.3,3167.2,2.68162477]
[1642555722000,4.79469306,3167.3,3167.2,2.68162477]
[1642555722203,1.58100528,3167.3,3166.9,1.60616527]
[1642555722401,0.78968,3167.2,3166.9,4.28779004]
[1642555722602,0.78965,3167.1,3167.0,2.68162477]
[1642555722803,4.01636682,3167.1,3166.9,2.68162477]
[1642555723000,4.01636682,3167.1,3167.0,2.68162477]
[1642555723401,4.01636682,3167.1,3166.6,1.60616527]
[1642555723850,4.01636682,3167.1,3166.7,0.00170527]
[1642555723851,0.78983,3166.9,3166.7,0.00170527]
[1642555724050,2.36951,3166.9,3166.7,0.00170527]
[1642555725251,2.36951,3166.9,3166.6,0.00227369]
[1642555725551,2.36951,3166.9,3166.6,1.60843896]
[1642555726350,2.36951,3166.9,3166.7,2.68209414]
[1642555726550,2.36951,3166.9,3166.8,2.68209414]
[1642555726851,2.36951,3166.9,3166.8,0.00113684]
[1642555728103,2.36951,3166.9,3166.6,0.00227369]
[1642555728908,2.73535785,3166.9,3166.6,0.00227369]
[1642555729110,4.24945,3166.8,3166.6,0.00227369]
[1642555729306,0.7899,3166.7,3166.6,0.00227369]
[1642555729505,1.7899,3166.7,3166.5,0.00284211]
[1642555729706,1.5798,3166.7,3166.5,0.00284211]
[1642555729905,2.5798,3166.7,3166.4,2.68209414]
[1642555730209,0.78993,3166.5,3166.4,2.68209414]
[1642555730604,0.78993,3166.5,3166.4,0.00341054]
[1642555731004,0.78993,3166.5,3166.1,2.68720995]
[1642555731252,0.78993,3166.5,3166.2,2.68664152]
[1642555731451,0.78993,3166.5,3166.3,2.68209414]
[1642555731653,0.78993,3166.5,3166.3,2.6860731]
[1642555731851,0.78993,3166.5,3166.4,2.68209414]
[1642555732652,2.57983,3166.5,3166.4,2.68209414]
[1642555732854,2.87983,3166.5,3166.4,2.68209414]
[1642555741749,1.57983,3166.5,3166.4,2.68209414]
[1642555742598,0.78993,3166.5,3166.4,2.68209414]
[1642555743198,0.78993,3166.5,3166.4,5.50446613]
[1642555743406,0.78973,3166.7,3166.4,5.50446613]
[1642555743598,0.78973,3166.7,3166.5,2.68209414]
[1642555743803,0.78973,3166.7,3166.5,2.68493625]
[1642555744001,0.78973,3166.7,3166.6,3.55227369]
[1642555744201,0.78973,3166.7,3166.6,6.23436783]
[1642555744802,0.78973,3166.7,3166.6,2.68436783]
[1642555745202,0.78973,3166.7,3166.6,0.00227369]
[1642555745703,0.78973,3166.7,3166.6,2.68436783]
[1642555745906,0.78973,3166.7,3166.6,0.00227369]
[1642555747657,0.78973,3166.7,3166.5,0.00284211]
[1642555747858,0.78973,3166.7,3166.6,0.00227369]
[1642555748258,0.78973,3166.7,3166.5,0.00284211]
[1642555748462,0.78973,3166.7,3166.6,2.25227369]
[1642555748659,0.78973,3166.7,3166.6,4.93209414]
[1642555748858,0.78973,3166.7,3166.6,4.93436783]
[1642555749461,1.08973,3166.7,3166.6,4.93436783]
[1642555749900,0.78973,3166.7,3166.6,4.93436783]
[1642555750101,1.08973,3166.7,3166.6,4.93436783]
[1642555750702,0.3,3166.7,3166.6,4.93436783]
[1642555751106,1.45553785,3166.9,3166.6,4.93436783]
[1642555751302,1.45553785,3166.9,3166.7,2.68209414]
[1642555751502,0.3,3167.0,3166.8,5.89980504]
[1642555751704,1.08966,3167.0,3166.9,5.54353791]
[1642555751906,0.3,3167.0,3166.9,2.68209414]
[1642555752506,0.3,3167.0,3166.8,1.19195547]
[1642555752708,0.3,3167.0,3166.9,5.44181227]
[1642555752908,1.57918,3167.6,3166.9,2.68209414]
[1642555753110,1.87918,3167.6,3166.9,5.48035865]
[1642555753308,0.00284212,3167.5,3167.0,2.68209414]
[1642555753754,0.78959,3167.3,3167.0,2.68209414]
[1642555754151,0.00113685,3167.2,3167.0,2.68209414]
[1642555754550,0.00113685,3167.2,3167.1,2.7842619]
[1642555754753,0.00113685,3167.2,3167.1,5.46635604]
[1642555755051,0.00113685,3167.2,3167.1,5.54284991]
[1642555764552,0.00113685,3167.2,3167.1,2.68209414]
[1642555764996,0.00113685,3167.2,3167.1,4.98209414]
[1642555765396,0.00113685,3167.2,3167.1,11.06351262]
[1642555765998,0.00113685,3167.2,3167.1,7.83209414]
[1642555766606,0.00113685,3167.2,3167.1,9.43748135]
[1642555767003,0.00113685,3167.2,3167.1,9.73748135]
[1642555767504,0.00113685,3167.2,3167.1,12.96889983]
[1642555767708,0.455,3168.4,3167.3,5.3]
[1642555767709,0.7894,3168.4,3167.3,5.3]
[1642555767908,6.31624,3169.4,3168.2,0.01204389]
[1642555767909,3.5,3169.4,3168.2,0.01204389]
[1642555768105,0.459415,3169.8,3168.2,0.01204389]
[1642555768106,0.459415,3169.8,3168.3,2.82029411]
[1642555768309,0.459415,3169.8,3168.4,7.04641262]
[1642555768310,0.7891,3169.3,3168.4,7.04641262]
[1642555768503,0.7891,3169.3,3168.5,3.82010171]
[1642555768758,0.7891,3169.3,3168.6,2.68209414]
[1642555768960,1.57826,3169.3,3168.6,2.68209414]
[1642555769156,0.7891,3169.3,3168.6,2.68209414]
[1642555769359,0.7891,3169.3,3168.7,3.23141848]
[1642555769558,0.7891,3169.3,3168.5,1.13800757]
[1642555769559,0.7891,3169.3,3168.8,2.68209414]
[1642555769758,0.7891,3169.3,3168.9,2.68209414]
[1642555770058,0.7891,3169.3,3169.0,2.68209414]
[1642555770358,0.7891,3169.3,3168.4,1.1329]
[1642555770359,1.57828,3169.3,3168.4,1.1329]
[1642555770559,2.04583532,3169.4,3168.5,2.68071137]
[1642555770560,0.7893,3169.0,3168.5,2.68071137]
[1642555770957,0.0096632,3168.9,3168.5,2.68071137]
[1642555771356,0.00909478,3168.8,3168.5,2.68071137]
[1642555771558,0.79845478,3168.8,3168.4,1.1329]
[1642555771758,0.00852635,3168.7,3168.4,1.1329]
[1642555771962,0.79787635,3168.7,3168.4,1.1329]
[1642555772258,0.00795793,3168.6,3168.4,1.1329]
[1642555772499,0.00795793,3168.6,3168.3,0.13819997]
[1642555772500,0.00795793,3168.6,3168.5,6.0308308]
[1642555772702,0.78924,3168.8,3168.5,6.0308308]
[1642555772900,0.78924,3168.8,3168.6,2.6808308]
[1642555773100,0.79833478,3168.8,3168.5,3.35]
[1642555773704,0.79833478,3168.8,3168.6,2.68071585]
[1642555774904,0.79833478,3168.8,3168.5,3.35]
[1642555776764,0.00909478,3168.8,3168.5,3.35]
[1642555777566,0.00909478,3168.8,3168.3,0.13819997]
[1642555778364,0.00909478,3168.8,3168.4,1.10363676]
[1642555780403,0.00909478,3168.8,3168.5,4.69560834]
[1642555780604,0.00909478,3168.8,3168.6,2.68050456]
[1642555780803,0.00909478,3168.8,3168.7,4.35]
[1642555781006,0.00909478,3168.8,3168.7,7.03050456]
[1642555782006,0.00909478,3168.8,3168.7,4.35]
[1642555782606,0.00909478,3168.8,3168.6,1.1459]
[1642555783009,0.00852635,3168.7,3168.6,1.1459]
[1642555783408,0.01364216,3168.7,3168.3,0.13819997]
[1642555783852,1.0,3169.1,3168.1,1.29479997]
[1642555783853,0.00795793,3168.6,3168.1,1.29479997]
[1642555784052,0.00795793,3168.6,3168.2,2.68080276]
[1642555784252,0.00738951,3168.5,3168.2,2.68080276]
[1642555784652,0.00682108,3168.4,3168.2,2.68080276]
[1642555785055,0.00625266,3168.3,3168.2,2.68080276]
[1642555785453,0.00795793,3168.3,3168.2,2.68080276]
[1642555787409,0.00795793,3168.3,3167.2,1.29257367]
[1642555787410,1.56675793,3168.3,3167.2,1.29257367]
[1642555787612,1.56675793,3168.3,3167.3,5.90393552]
[1642555787806,0.00568424,3168.2,3167.4,2.68121764]
[1642555788006,0.455,3168.1,3167.4,2.68121764]
[1642555788207,0.46011581,3168.1,3167.4,2.68121764]
[1642555788412,0.00454739,3168.0,3167.4,2.68121764]
[1642555788609,0.455,3167.9,3167.4,2.68121764]
[1642555788810,0.45897897,3167.9,3167.4,2.68121764]
[1642555789013,0.00341054,3167.8,3167.4,2.68121764]
[1642555789212,0.455,3167.7,3167.4,2.68121764]
[1642555789412,0.45784212,3167.7,3167.4,2.68121764]
[1642555789611,0.0022737,3167.6,3167.4,2.68121764]
[1642555790012,0.00170527,3167.5,3167.4,2.68121764]
[1642555791014,0.00170527,3167.5,3167.3,2.68121764]
[1642555791252,0.00170527,3167.5,3167.4,2.68121764]
[1642555791451,0.455,3167.7,3167.2,1.29257367]
[1642555791452,0.00113685,3167.4,3167.2,1.29257367]
[1642555791654,0.00170527,3167.5,3167.3,5.24622093]
[1642555791853,0.0022737,3167.6,3167.3,5.24622093]
[1642555792052,0.00113685,3167.4,3167.3,5.24622093]
[1642555793860,0.79072685,3167.4,3167.3,5.24622093]
[1642555794657,0.00113685,3167.4,3167.3,5.24622093]
[1642555795912,0.00113685,3167.4,3167.3,3.39622093]
[1642555796309,0.00113685,3167.4,3167.2,0.14047367]
[1642555796611,0.00113685,3167.4,3167.2,0.0022737]
[1642555796612,0.79070685,3167.4,3167.2,0.0022737]
[1642555796810,3.31752054,3167.3,3167.2,0.0022737]
[1642555797015,5.68703054,3167.3,3166.8,1.1794]
[1642555797410,2.36951,3167.3,3166.9,0.00170527]
[1642555797611,3.36951,3167.3,3166.9,0.00170527]
[1642555798415,4.1593,3167.3,3166.9,0.00170527]
[1642555798678,0.78971,3167.1,3166.9,0.00170527]
[1642555799170,0.78971,3167.1,3166.8,0.00227369]
[1642555799771,1.24578685,3167.4,3166.9,1.60108697]
[1642555799772,0.00113685,3167.4,3166.9,1.60108697]
[1642555799974,0.00113685,3167.4,3167.1,2.36913]
[1642555800173,0.00113685,3167.4,3167.1,3.75277903]
[1642555800376,0.00113685,3167.4,3167.1,4.05277903]
[1642555800573,0.00113685,3167.4,3167.3,5.67287445]
[1642555801774,0.00113685,3167.4,3167.3,8.6079784]
[1642555801980,0.00113685,3167.4,3167.3,9.6286784]
[1642555802174,0.455,3168.5,3167.4,5.3]
[1642555802407,0.455,3168.9,3167.6,0.7893699]
[1642555802607,0.455,3168.9,3168.3,1.51522639]
[1642555802812,0.455,3168.9,3167.7,3.39178492]
[1642555803018,1.57874,3168.5,3167.7,3.39178492]
[1642555803312,0.78937,3168.3,3167.7,3.39178492]
[1642555803711,0.78937,3168.3,3167.8,0.7893705]
[1642555803911,0.78937,3168.3,3168.1,1.50557737]
[1642555804111,2.03373,3168.9,3168.2,5.58883133]
[1642555804112,1.57864,3168.7,3168.2,5.58883133]
[1642555804312,0.78932,3168.7,3168.2,5.58883133]
[1642555804512,0.78929,3168.5,3168.2,5.88883133]
[1642555804812,1.57858,3168.9,3168.2,5.88883133]
[1642555805212,0.78922,3169.1,3168.2,5.88883133]
[1642555805617,0.78922,3169.1,3168.4,1.2882455]
[1642555805814,0.78922,3169.1,3168.2,5.88883133]
[1642555805815,0.78921,3168.9,3168.2,5.88883133]
[1642555806015,0.78921,3168.9,3168.2,5.58883133]
[1642555806265,0.78921,3168.9,3168.2,5.90432225]
[1642555806464,0.78921,3168.9,3168.3,2.68060323]
[1642555806665,0.78921,3168.9,3168.4,2.80225545]
[1642555806864,0.78921,3168.9,3168.3,2.68060323]
[1642555806865,0.78921,3168.9,3168.5,2.68060323]
[1642555807064,0.78921,3168.9,3168.6,2.68060323]
[1642555807266,0.00795793,3168.8,3168.7,2.68060323]
[1642555807465,0.00795793,3168.8,3168.5,2.68060323]
[1642555807865,0.0073895,3168.7,3168.6,2.68060323]
[1642555808065,0.0073895,3168.7,3168.5,2.68060323]
[1642555808270,0.0073895,3168.7,3168.6,5.60196739]
[1642555808468,1.57854,3169.0,3168.6,8.28257062]
[1642555808670,0.46548214,3169.9,3168.6,8.28257062]
[1642555808671,0.004415,3169.8,3168.7,5.43819997]
[1642555808873,0.00852635,3168.9,3168.8,9.79238242]
[1642555809071,0.00852635,3168.9,3168.8,11.23518242]
[1642555809269,0.05964941,3168.9,3168.8,12.52486567]
[1642555810917,0.05964941,3168.9,3168.8,11.06360337]
[1642555811213,0.05964941,3168.9,3168.8,7.68030323]
[1642555811614,0.05964941,3168.9,3168.8,2.68060323]
[1642555811814,0.05964941,3168.9,3168.8,6.88060323]
[1642555812014,0.05964941,3168.9,3168.8,2.68060323]
[1642555812814,0.05964941,3168.9,3168.8,5.48060323]
[1642555813014,0.05964941,3168.9,3168.8,8.29697587]
[1642555813214,0.05964941,3168.9,3168.8,5.48060323]
[1642555813418,0.05964941,3168.9,3168.8,8.28836821]
[1642555813658,0.05964941,3168.9,3168.8,6.87840865]
[1642555813863,0.05964941,3168.9,3168.8,9.64123937]
[1642555814064,0.05964941,3168.9,3168.8,6.87840865]
[1642555815264,0.05964941,3168.9,3168.8,9.72200418]
[1642555815864,0.05964941,3168.9,3168.8,2.68060323]
[1642555816468,0.05964941,3168.9,3168.8,5.46053398]
[1642555816664,0.05964941,3168.9,3168.8,2.68060323]
[1642555816865,0.05964941,3168.9,3168.8,6.38060323]
[1642555817266,0.05964941,3168.9,3168.8,9.14315754]
[1642555817508,0.05964941,3168.9,3168.8,9.33704898]
[1642555819614,0.05964941,3168.9,3168.8,6.38060323]
[1642555820216,0.84887941,3168.9,3168.8,6.38060323]
[1642555820413,0.84887941,3168.9,3168.8,2.68060323]
[1642555820813,0.84887941,3168.9,3168.8,4.78060323]
[1642555821657,0.05964941,3168.9,3168.8,4.78060323]
[1642555822256,0.05964941,3168.9,3168.8,9.06711785]
[1642555822456,0.05964941,3168.9,3168.8,6.19919885]
[1642555822655,0.05964941,3168.9,3168.8,6.49919885]
[1642555823259,0.05964941,3168.9,3168.8,9.28005289]
[1642555824939,0.05964941,3168.9,3168.8,8.98005289]
[1642555825132,0.05964941,3168.9,3168.8,6.19919885]
[1642555826635,0.05964941,3168.9,3168.8,2.68060323]
[1642555828537,0.05964941,3168.9,3168.8,4.93060323]
[1642555829564,0.05964941,3168.9,3168.8,2.68060323]
[1642555838663,0.84886941,3168.9,3168.8,2.68060323]
[1642555839067,0.05964941,3168.9,3168.8,2.68060323]
[1642555839272,0.05112306,3168.9,3168.8,2.68060323]
[1642555839468,0.05112306,3168.9,3168.8,4.73060323]
[1642555841310,0.05112306,3168.9,3168.8,6.0454162]
[1642555842212,0.05112306,3168.9,3168.8,7.97685609]
[1642555842411,0.05112306,3168.9,3168.8,4.73060323]
[1642555843211,0.05112306,3168.9,3168.8,6.15673736]
[1642555845066,0.05112306,3168.9,3168.8,7.75782433]
[1642555845264,0.05112306,3168.9,3168.8,10.5128292]
[1642555845466,0.05112306,3168.9,3168.8,8.91174223]
[1642555845664,0.05112306,3168.9,3168.8,6.15673736]
[1642555846064,0.05112306,3168.9,3168.8,10.54851019]
[1642555846466,0.05112306,3168.9,3168.8,7.75782433]
[1642555849726,0.05112306,3168.9,3168.8,2.68060323]
[1642555850621,0.05112306,3168.9,3168.5,4.28486988]
[1642555850821,0.05112306,3168.9,3168.6,2.68060323]
[1642555850822,0.78933,3168.8,3168.6,2.68060323]
[1642555851021,0.79728793,3168.8,3168.7,2.68060323]
[1642555851268,0.02556153,3168.6,3168.4,6.35818081]
[1642555851468,0.05112306,3168.6,3168.4,6.35818081]
[1642555851664,0.00625266,3168.5,3168.4,6.35818081]
[1642555851867,0.00625266,3168.5,3168.4,3.9501]
[1642555852270,0.84042306,3168.6,3168.5,3.7]
[1642555852271,0.83872788,3168.6,3168.5,3.7]
[1642555853669,0.04942788,3168.6,3168.5,3.7]
[1642555853871,0.04942788,3168.6,3168.5,6.10808081]
[1642555854772,0.04942788,3168.6,3168.5,3.7]
[1642555856240,0.02556153,3168.6,3168.5,6.46633807]
[1642555856440,0.02556153,3168.6,3168.5,8.87442894]
[1642555856641,0.04942788,3168.6,3168.5,8.87442894]
[1642555856839,0.04942788,3168.6,3168.5,9.17442894]
[1642555857041,0.04942788,3168.6,3168.5,6.40809087]
[1642555857443,0.04942788,3168.6,3168.5,6.80166598]
[1642555857842,0.30692954,3169.6,3168.8,0.789064]
[1642555858040,0.30692954,3169.6,3168.9,2.90396608]
[1642555858242,0.00397896,3169.2,3168.9,2.90396608]
[1642555858661,0.30692954,3169.6,3168.9,2.90396608]
[1642555858662,0.00341054,3169.1,3168.9,2.90396608]
[1642555858865,0.00341054,3169.1,3168.9,3.20396608]
[1642555859067,0.00284211,3169.0,3168.9,0.3]
[1642555859266,0.00284211,3169.0,3168.8,1.83904796]
[1642555859468,0.00284211,3169.0,3168.9,5.95999671]
[1642555859765,0.78907,3169.5,3168.9,6.74907021]
[1642555859969,0.78907,3169.5,3169.0,0.3]
[1642555860168,0.00511581,3169.4,3169.0,0.3]
[1642555860565,0.00454738,3169.3,3169.0,0.3]
[1642555860968,0.00397896,3169.2,3169.0,0.3]
[1642555861369,0.00341054,3169.1,3169.0,0.3]
[1642555862167,0.00341054,3169.1,3168.9,3.9890735]
[1642555862412,0.00341054,3169.1,3168.9,3.2]
[1642555862615,0.30692954,3169.6,3168.9,3.2]
[1642555862616,0.00284211,3169.0,3168.9,3.2]
[1642555863011,0.00284211,3169.0,3168.6,4.02985575]
[1642555863418,0.00227369,3168.9,3168.6,4.02985575]
[1642555863818,0.00170527,3168.8,3168.6,4.02985575]
[1642555864017,0.78926,3168.7,3168.6,4.02985575]
[1642555864218,0.79039684,3168.7,3168.6,4.02985575]
[1642555864418,0.79039684,3168.7,3168.6,0.09885575]
[1642555864818,0.00113684,3168.7,3168.6,0.09885575]
[1642555865320,0.00113684,3168.7,3168.6,5.39885575]
[1642555866166,0.00113684,3168.7,3168.6,8.07896426]
[1642555866763,0.79038684,3168.7,3168.6,9.68422074]
[1642555867063,0.79038684,3168.7,3168.6,8.07896426]
[1642555867262,0.79038684,3168.7,3168.6,9.68422074]
[1642555867664,0.79038684,3168.7,3168.6,8.07896426]
[1642555867868,0.79038684,3168.7,3168.6,9.68411531]
[1642555868067,0.79038684,3168.7,3168.6,4.38411531]
[1642555868267,1.09038684,3168.7,3168.6,2.77896426]
[1642555868866,0.79038684,3168.7,3168.6,2.77896426]
[1642555870914,0.00113684,3168.7,3168.6,2.77896426]
[1642555871114,0.00113684,3168.7,3168.6,4.38411531]
[1642555871315,0.00113684,3168.7,3168.6,2.77896426]
[1642555872518,0.79038684,3168.7,3168.6,2.77896426]
[1642555874064,0.79038684,3168.7,3168.6,5.32896426]
[1642555877268,0.00113684,3168.7,3168.6,5.32896426]
[1642555877914,0.00113684,3168.7,3168.6,6.93411531]
[1642555878118,0.00113684,3168.7,3168.6,5.32896426]
[1642555881363,0.00113684,3168.7,3168.6,6.43023045]
[1642555881564,0.00113684,3168.7,3168.6,6.88466937]
[1642555881765,0.004415,3169.8,3168.7,5.30227368]
[1642555881963,0.004415,3169.8,3169.1,1.60440699]
[1642555881964,3.504415,3169.8,3169.1,1.60440699]
[1642555882163,0.00397897,3169.4,3169.2,2.67968821]
[1642555882363,0.00397897,3169.4,3169.3,5.62968821]
[1642555882562,3.504415,3169.8,3169.3,4.03406131]
[1642555882763,3.504415,3169.8,3169.4,2.67968821]
[1642555882964,0.00568424,3169.7,3169.4,2.67968821]
[1642555883364,0.004415,3169.8,3169.5,2.67968821]
[1642555883365,0.00511581,3169.6,3169.5,2.67968821]
[1642555883574,0.00511581,3169.6,3169.1,2.67968821]
[1642555883770,0.78907,3169.5,3169.2,1.29541025]